[Event "Icelandic Team-ch Kvika Leagu 2023-24"]
[Site "Reykjavik"]
[Date "2024.03.02"]
[Round "7"]
[White "Kjartansson, David"]
[Black "Prudnikov, Andrey"]
[Result "0-1"]
[ECO "B23"]
[WhiteElo "2287"]
[BlackElo "2094"]
[Annotator "ChessBase"]
[PlyCount "96"]
[EventDate "2024.02.29"]
[EventType "team-tourn"]
[EventCountry "ISL"]
[SourceTitle "playchess.com"]
[Source "ChessBase"]
[SourceQuality "1"]
[TimeControl "40/5400+30:900+30"]

1. e4 {[%emt 0:00:04]} c5 {[%emt 0:00:03]} 2. Nc3 {[%emt 0:00:24]} a6 {[%emt 0:00:04]} 3. d4 {[%emt 0:02:27]} cxd4 {[%emt 0:00:07]} 4. Qxd4 {[%emt 0:00:05]} Nc6 {[%emt 0:00:55]} 5. Qd2 {[%emt 0:00:07]} Nf6 {[%emt 0:02:54]} 6. f4 {[%emt 0:04:36]} e5 {[%emt 0:01:53]} 7. Nf3 {[%emt 0:01:25]} Bb4 {[%emt 0:03:01]} 8. fxe5 {[%emt 0:06:02]} Nxe4 {[%emt 0:02:56]} 9. Nxe4 {[%emt 0:09:39]} Bxd2+ {[%emt 0:00:41]} 10. Bxd2 {[%emt 0:00:06]} O-O {[%emt 0:12:20]} 11. O-O-O {[%emt 0:00:19]} Qe7 {[%emt 0:06:34]} 12. Bc3 {[%emt 0:00:10]} b5 {[%emt 0:00:14]} 13. a3 {[%emt 0:00:43]} b4 {[%emt 0:00:54]} 14. axb4 {[%emt 0:00:05]} Nxb4 {[%emt 0:00:05]} 15. Bc4 {[%emt 0:00:09]} d5 {[%emt 0:05:09]} 16. Nd6 {[%emt 0:02:39]} dxc4 {[%emt 0:03:14]} 17. Bxb4 {[%emt 0:00:06]} Bg4 {[%emt 0:00:38]} 18. Rhe1 {[%emt 0:01:06]} Rfb8 {[%emt 0:04:22]} 19. Bc3 {[%emt 0:00:08]} Be6 {[%emt 0:02:19]} 20. Nd4 {[%emt 0:02:09]} Qg5+ {[%emt 0:08:53]} 21. Rd2 {[%emt 0:08:08]} a5 {[%emt 0:03:19]} 22. Ne4 {[%emt 0:06:11]} Qh6 {[%emt 0:03:35]} 23. Kb1 {[%emt 0:02:28]} a4 {[%emt 0:03:57]} 24. Nc6 {[%emt 0:02:04]} Re8 {[%emt 0:05:02]} 25. Nd6 {[%emt 0:01:54]} Rf8 {[%emt 0:00:16]} 26. Ka2 {[%emt 0:05:41]} Ra6 {[%emt 0:13:39]} 27. Ne7+ {[%emt 0:07:51]} Kh8 {[%emt 0:00:09]} 28. Rf1 {[%emt 0:01:03]} Raa8 {[%emt 0:06:31]} 29. Nef5 {[%emt 0:09:30]} Qxh2 {[%emt 0:06:12]} 30. Rf3 {[%emt 0:05:55]} a3 {[%emt 0:01:35]} 31. bxa3 {[%emt 0:01:21]} Rfb8 {[%emt 0:00:28]} 32. Ne3 {[%emt 0:02:29]} Qh4 {[%emt 0:01:43]} 33. Nxf7+ {[%emt 0:13:45]} Bxf7 {[%emt 0:00:54]} 34. Rxf7 {[%emt 0:00:05]} Qh6 {[%emt 0:01:42]} 35. Nxc4 {[%emt 0:05:05]} Qe6 {[%emt 0:00:56]} 36. Rc7 {[%emt 0:00:08]} Rc8 {[%emt 0:00:23]} 37. Rdd7 {[%emt 0:00:05]} Rxc7 {[%emt 0:00:14]} 38. Rxc7 {[%emt 0:00:02]} Rc8 {[%emt 0:00:27]} 39. Rxc8+ {[%emt 0:00:06]} Qxc8 {[%emt 0:00:04]} 40. Kb3 {[%emt 0:00:00]} Qb7+ {[%emt 0:00:00]} 41. Bb4 {[%emt 0:00:35]} Qxg2 {[%emt 0:01:33]} 42. Nd6 {[%emt 0:00:14]} Kg8 {[%emt 0:01:11]} 43. c4 {[%emt 0:00:10]} Qg3+ {[%emt 0:00:14]} 44. Bc3 {[%emt 0:00:06]} Qe3 {[%emt 0:01:30]} 45. Kb4 {[%emt 0:00:48]} h5 {[%emt 0:00:20]} 46. c5 {[%emt 0:00:26]} h4 {[%emt 0:01:01]} 47. Nc4 {[%emt 0:01:13]} Qe4 {[%emt 0:00:51]} 48. Kb5 {[%emt 0:00:04]} h3 {[%emt 0:00:28]} 0-1

[Event "Icelandic Team-ch Kvika Leagu 2023-24"]
[Site "Reykjavik"]
[Date "2024.03.02"]
[Round "7"]
[White "Thorsteinsson, Thorsteinn"]
[Black "Arngrimsson, Dagur"]
[Result "1/2-1/2"]
[ECO "A11"]
[WhiteElo "2193"]
[BlackElo "2366"]
[Annotator "ChessBase"]
[PlyCount "124"]
[EventDate "2024.02.29"]
[EventType "team-tourn"]
[EventCountry "ISL"]
[SourceTitle "playchess.com"]
[Source "ChessBase"]
[SourceQuality "1"]
[TimeControl "40/5400+30:900+30"]

1. c4 {[%emt 0:00:03]} c6 {[%emt 0:03:37]} 2. Nf3 {[%emt 0:01:25]} Nf6 {[%emt 0:00:06]} 3. Nc3 {[%emt 0:00:14]} d5 {[%emt 0:00:37]} 4. e3 {[%emt 0:00:41]} e6 {[%emt 0:01:18]} 5. b3 {[%emt 0:00:23]} Bd6 {[%emt 0:02:36]} 6. Qc2 {[%emt 0:00:38]} O-O {[%emt 0:00:20]} 7. Bb2 {[%emt 0:00:25]} Qe7 {[%emt 0:01:21]} 8. Be2 {[%emt 0:01:38]} Nbd7 {[%emt 0:10:59]} 9. O-O {[%emt 0:02:28]} Re8 {[%emt 0:00:53]} 10. Rad1 {[%emt 0:04:02]} a6 {[%emt 0:02:36]} 11. d4 {[%emt 0:00:53]} dxc4 {[%emt 0:11:44]} 12. Bxc4 {[%emt 0:02:45]} b5 {[%emt 0:02:18]} 13. Bd3 {[%emt 0:02:24]} Bb7 {[%emt 0:00:07]} 14. Ne4 {[%emt 0:05:27]} Nxe4 {[%emt 0:06:08]} 15. Bxe4 {[%emt 0:00:11]} f5 {[%emt 0:04:17]} 16. Bd3 {[%emt 0:08:02]} c5 {[%emt 0:02:01]} 17. d5 {[%emt 0:02:43]} Nf8 {[%emt 0:17:45]} 18. e4 {[%emt 0:09:00]} exd5 {[%emt 0:00:22]} 19. e5 {[%emt 0:14:50]} Bc7 {[%emt 0:00:47]} 20. Bxf5 {[%emt 0:00:12]} Rad8 {[%emt 0:06:36]} 21. Rfe1 {[%emt 0:05:32]} Ba5 {[%emt 0:01:28]} 22. Re2 {[%emt 0:03:27]} d4 {[%emt 0:04:19]} 23. Be4 {[%emt 0:01:01]} Bxe4 {[%emt 0:03:23]} 24. Qxe4 {[%emt 0:02:25]} Ne6 {[%emt 0:03:26]} 25. h4 {[%emt 0:03:53]} Qd7 {[%emt 0:05:18]} 26. Qg4 {[%emt 0:06:32]} Bb6 {[%emt 0:04:45]} 27. Ng5 {[%emt 0:02:36]} c4 {[%emt 0:01:36]} 28. Ne4 {[%emt 0:02:43]} Kh8 {[%emt 0:01:05]} 29. Nd6 {[%emt 0:06:39]} d3 {[%emt 0:00:08]} 30. Re4 {[%emt 0:02:32]} Rf8 {[%emt 0:00:12]} 31. Rd2 {[%emt 0:01:28]} Ba5 {[%emt 0:01:04]} 32. Rd1 {[%emt 0:00:01]} c3 {[%emt 0:00:27]} 33. b4 {[%emt 0:00:06]} cxb2 {[%emt 0:01:07]} 34. bxa5 {[%emt 0:00:06]} Nc5 {[%emt 0:00:25]} 35. Qxd7 {[%emt 0:00:12]} Rxd7 {[%emt 0:00:07]} 36. Rb4 {[%emt 0:00:14]} Na4 {[%emt 0:00:39]} 37. Rxd3 {[%emt 0:00:25]} Rc7 {[%emt 0:00:18]} 38. Kh2 {[%emt 0:01:34]} Re7 {[%emt 0:02:18]} 39. f4 {[%emt 0:00:36]} g5 {[%emt 0:00:39]} 40. hxg5 {[%emt 0:00:00]} Rxf4 {[%emt 0:00:00]} 41. Rxf4 {[%emt 0:07:29]} b1=Q {[%emt 0:00:51]} 42. Rdf3 {[%emt 0:00:27]} Qxa2 {[%emt 0:10:02]} 43. Rf8+ {[%emt 0:01:02]} Kg7 {[%emt 0:00:06]} 44. R3f6 {[%emt 0:00:21]} Rxe5 {[%emt 0:04:45]} 45. Ne8+ {[%emt 0:04:05]} Rxe8 {[%emt 0:00:00]} 46. Rxe8 {[%emt 0:00:03]} Qa3 {[%emt 0:00:00]} 47. Rxa6 {[%emt 0:01:04]} Qc5 {[%emt 0:00:00]} 48. Rea8 {[%emt 0:00:45]} Qe5+ {[%emt 0:00:00]} 49. Kh1 {[%emt 0:00:27]} Nc5 {[%emt 0:01:47]} 50. R8a7+ {[%emt 0:01:01]} Kf8 {[%emt 0:00:51]} 51. Rc6 {[%emt 0:00:58]} Qe1+ {[%emt 0:00:27]} 52. Kh2 {[%emt 0:00:05]} Qh4+ {[%emt 0:00:04]} 53. Kg1 {[%emt 0:00:07]} Qd4+ {[%emt 0:00:03]} 54. Kh1 {[%emt 0:00:31]} Nd7 {[%emt 0:01:44]} 55. Rcc7 {[%emt 0:02:11]} Qh4+ {[%emt 0:02:19]} 56. Kg1 {[%emt 0:00:05]} Qe1+ {[%emt 0:00:05]} 57. Kh2 {[%emt 0:00:06]} Qh4+ {[%emt 0:00:49]} 58. Kg1 {[%emt 0:00:04]} Qd4+ {[%emt 0:00:13]} 59. Kh1 {[%emt 0:00:42]} Ke7 {[%emt 0:00:31]} 60. a6 {[%emt 0:00:18]} Qh4+ {[%emt 0:00:18]} 61. Kg1 {[%emt 0:00:05]} Qe1+ {[%emt 0:00:03]} 62. Kh2 {[%emt 0:00:03]} Qh4+ {[%emt 0:02:20]} 1/2-1/2

[Event "Icelandic Team-ch Kvika Leagu 2023-24"]
[Site "Reykjavik"]
[Date "2024.03.01"]
[Round "7"]
[White "Petersson, Baldur Teodor"]
[Black "Olafsson, Thorvardur"]
[Result "1-0"]
[ECO "C54"]
[WhiteElo "2190"]
[BlackElo "2105"]
[Annotator "RC"]
[PlyCount "89"]
[EventDate "2024.02.29"]
[EventType "team-tourn"]
[EventCountry "ISL"]
[SourceTitle "playchess.com"]
[Source "ChessBase"]
[SourceQuality "1"]
[TimeControl "40/5400+30:900+30"]

1. e4 {[%emt 0:00:20]} e5 {[%emt 0:00:49]} 2. Nf3 {[%emt 0:00:14]} Nc6 {[%emt 0:00:07]} 3. Bc4 {[%emt 0:00:19]} Bc5 {[%emt 0:00:40]} 4. c3 {[%emt 0:00:09]} Nf6 {[%emt 0:00:09]} 5. d4 {[%emt 0:00:12]} exd4 {[%emt 0:00:27]} 6. e5 {[%emt 0:00:09]} d5 {[%emt 0:01:57]} 7. Bb5 {[%emt 0:00:11]} Ne4 {[%emt 0:01:05]} 8. cxd4 {[%emt 0:00:11]} Bb4+ {[%emt 0:01:58]} 9. Bd2 {[%emt 0:02:02]} Nxd2 {[%emt 0:05:53]} 10. Nbxd2 {[%emt 0:00:24]} Bxd2+ {[%emt 0:16:08]} 11. Qxd2 {[%emt 0:01:37]} Bd7 {[%emt 0:02:00]} 12. O-O {[%emt 0:14:07]} O-O {[%emt 0:03:26]} 13. Bd3 {[%emt 0:12:31]} Bg4 {[%emt 0:16:40]} 14. Ng5 {[%emt 0:11:09]} h6 {[%emt 0:02:21]} 15. Nh7 {[%emt 0:00:12]} Re8 {[%emt 0:01:21]} 16. Qf4 {[%emt 0:02:21]} Be2 {[%emt 0:16:21]} 17. Nf6+ {[%emt 0:09:56]} gxf6 {[%emt 0:06:20]} 18. Qxh6 {[%emt 0:03:04]} Bxd3 {[%emt 0:07:39]} 19. exf6 {[%emt 0:00:16]} Qxf6 {[%emt 0:00:14]} 20. Qxf6 {[%emt 0:00:06]} Bxf1 {[%emt 0:00:08]} 21. Kxf1 {[%emt 0:00:36]} Rad8 {[%emt 0:00:31]} 22. Re1 {[%emt 0:02:13]} Rxe1+ {[%emt 0:00:26]} 23. Kxe1 {[%emt 0:00:08]} Re8+ {[%emt 0:02:04]} 24. Kf1 {[%emt 0:00:22]} Re4 {[%emt 0:00:48]} 25. Qg5+ {[%emt 0:00:23]} Kf8 {[%emt 0:00:24]} 26. Qxd5 {[%emt 0:00:10]} Rxd4 {[%emt 0:00:09]} 27. Qc5+ {[%emt 0:01:11]} Ke8 {[%emt 0:01:14]} 28. g3 {[%emt 0:00:11]} Rb4 {[%emt 0:02:40]} 29. b3 {[%emt 0:01:24]} a5 {[%emt 0:00:18]} 30. Qf5 {[%emt 0:01:06]} a4 {[%emt 0:02:05]} 31. bxa4 {[%emt 0:02:17]} Rxa4 {[%emt 0:00:26]} 32. Qc8+ {[%emt 0:00:06]} Nd8 {[%emt 0:00:15]} 33. Qxc7 {[%emt 0:00:06]} Rxa2 {[%emt 0:00:15]} 34. Qe5+ {[%emt 0:00:14]} Kf8 {[%emt 0:01:32]} 35. h4 {[%emt 0:03:38]} Ra6 {[%emt 0:01:46]} 36. h5 {[%emt 0:00:32]} Rh6 {[%emt 0:05:41]} 37. g4 {[%emt 0:00:23]} f6 {[%emt 0:00:40]} 38. Qd6+ {[%emt 0:03:53]} Ke8 {[%emt 0:00:22]} 39. g5 {[%emt 0:00:22]} Rxh5 {[%emt 0:00:31]} 40. Qxf6 {[%emt 0:00:00]} Rh1+ {[%emt 0:00:00]} 41. Kg2 {[%emt 0:05:15]} Rh4 {[%emt 0:04:27]} 42. g6 {[%emt 0:00:52]} Rg4+ {[%emt 0:00:37]} 43. Kh3 {[%emt 0:00:37]} Rg1 {[%emt 0:00:11]} 44. Kh2 {[%emt 0:00:12]} Rg4 {[%emt 0:01:01]} 45. Qe5+ {[%emt 0:00:22]} 1-0

[Event "Icelandic Team-ch Kvika Leagu 2023-24"]
[Site "Reykjavik"]
[Date "2024.03.01"]
[Round "7"]
[White "Einarsson, Arnthor"]
[Black "O`Donnell, Conor"]
[Result "0-1"]
[ECO "D31"]
[WhiteElo "2179"]
[BlackElo "2284"]
[Annotator "RC"]
[PlyCount "64"]
[EventDate "2024.02.29"]
[EventType "team-tourn"]
[EventCountry "ISL"]
[SourceTitle "playchess.com"]
[Source "ChessBase"]
[SourceQuality "1"]
[TimeControl "40/5400+30:900+30"]

1. d4 {[%emt 0:00:03]} d5 {[%emt 0:00:35]} 2. c4 {[%emt 0:00:07]} e6 {[%emt 0:00:14]} 3. Nc3 {[%emt 0:00:05]} c6 {[%emt 0:00:26]} 4. Nf3 {[%emt 0:00:44]} dxc4 {[%emt 0:00:19]} 5. a4 {[%emt 0:00:07]} Bb4 {[%emt 0:00:31]} 6. e3 {[%emt 0:00:56]} b5 {[%emt 0:00:17]} 7. Ne5 {[%emt 0:00:50]} Nf6 {[%emt 0:04:47]} 8. Bd2 {[%emt 0:00:39]} Bb7 {[%emt 0:25:12]} 9. b3 {[%emt 0:01:26]} Bxc3 {[%emt 0:09:23]} 10. Bxc3 {[%emt 0:00:35]} Nd5 {[%emt 0:01:43]} 11. Qd2 {[%emt 0:05:59]} Nxc3 {[%emt 0:01:59]} 12. Qxc3 {[%emt 0:00:08]} a5 {[%emt 0:02:01]} 13. bxc4 {[%emt 0:02:44]} b4 {[%emt 0:00:34]} 14. Qb2 {[%emt 0:01:06]} c5 {[%emt 0:00:53]} 15. Be2 {[%emt 0:00:48]} cxd4 {[%emt 0:05:03]} 16. O-O-O {[%emt 0:01:54]} O-O {[%emt 0:03:23]} 17. Rxd4 {[%emt 0:00:47]} Qc7 {[%emt 0:01:38]} 18. Rg4 {[%emt 0:10:48]} f6 {[%emt 0:01:26]} 19. Nd3 {[%emt 0:00:27]} e5 {[%emt 0:05:19]} 20. Qb3 {[%emt 0:06:07]} Nd7 {[%emt 0:02:45]} 21. Kb1 {[%emt 0:01:32]} f5 {[%emt 0:01:42]} 22. Rh4 {[%emt 0:02:18]} Be4 {[%emt 0:05:24]} 23. c5+ {[%emt 0:02:51]} Kh8 {[%emt 0:01:40]} 24. Rc1 {[%emt 0:00:14]} Rac8 {[%emt 0:06:27]} 25. f3 {[%emt 0:11:41]} Nxc5 {[%emt 0:04:08]} 26. fxe4 {[%emt 0:19:16]} Nxb3 {[%emt 0:00:23]} 27. Rxc7 {[%emt 0:00:43]} Rxc7 {[%emt 0:00:14]} 28. Nxe5 {[%emt 0:00:16]} Re8 {[%emt 0:07:52]} 29. Ng6+ {[%emt 0:08:51]} Kg8 {[%emt 0:00:04]} 30. Nf4 {[%emt 0:01:03]} Rec8 {[%emt 0:02:42]} 31. Bd3 {[%emt 0:01:00]} fxe4 {[%emt 0:00:39]} 32. Bxe4 {[%emt 0:00:10]} Nd2+ {[%emt 0:00:10]} 0-1

[Event "Icelandic Team-ch Kvika Leagu 2023-24"]
[Site "Reykjavik"]
[Date "2024.03.02"]
[Round "7"]
[White "Van den Berg, Bram"]
[Black "Gunnarsson, Jon Viktor"]
[Result "0-1"]
[ECO "B21"]
[WhiteElo "2173"]
[BlackElo "2442"]
[Annotator "RC"]
[PlyCount "100"]
[EventDate "2024.02.29"]
[EventType "team-tourn"]
[EventCountry "ISL"]
[SourceTitle "playchess.com"]
[Source "ChessBase"]
[SourceQuality "1"]
[TimeControl "40/5400+30:900+30"]

1. e4 {[%emt 0:00:19]} c5 {[%emt 0:00:16]} 2. Be2 {[%emt 0:00:14]} Nc6 {[%emt 0:02:05]} 3. f4 {[%emt 0:00:35]} d5 {[%emt 0:02:46]} 4. d3 {[%emt 0:00:13]} g6 {[%emt 0:03:24]} 5. Nf3 {[%emt 0:01:38]} Bg7 {[%emt 0:01:09]} 6. O-O {[%emt 0:01:15]} e6 {[%emt 0:06:29]} 7. Qe1 {[%emt 0:02:09]} Nge7 {[%emt 0:02:14]} 8. c3 {[%emt 0:00:44]} b6 {[%emt 0:05:10]} 9. Na3 {[%emt 0:01:53]} Ba6 {[%emt 0:04:13]} 10. Bd2 {[%emt 0:11:28]} Qd7 {[%emt 0:08:40]} 11. e5 {[%emt 0:08:10]} d4 {[%emt 0:08:50]} 12. c4 {[%emt 0:05:39]} h6 {[%emt 0:03:13]} 13. Nc2 {[%emt 0:05:02]} O-O {[%emt 0:05:14]} 14. b3 {[%emt 0:03:47]} Bb7 {[%emt 0:04:43]} 15. b4 {[%emt 0:06:36]} cxb4 {[%emt 0:06:27]} 16. Nxb4 {[%emt 0:00:22]} Nf5 {[%emt 0:11:09]} 17. Nc2 {[%emt 0:00:44]} f6 {[%emt 0:03:12]} 18. exf6 {[%emt 0:01:19]} Bxf6 {[%emt 0:00:04]} 19. g4 {[%emt 0:00:23]} Ne3 {[%emt 0:00:37]} 20. Nxe3 {[%emt 0:00:09]} dxe3 {[%emt 0:00:06]} 21. Bxe3 {[%emt 0:00:30]} Bxa1 {[%emt 0:00:09]} 22. Qxa1 {[%emt 0:00:06]} e5 {[%emt 0:00:31]} 23. Nh4 {[%emt 0:10:42]} Qd6 {[%emt 0:11:17]} 24. f5 {[%emt 0:02:02]} g5 {[%emt 0:03:54]} 25. Ng6 {[%emt 0:03:37]} Rf7 {[%emt 0:00:07]} 26. Qe1 {[%emt 0:08:54]} Nd4 {[%emt 0:01:00]} 27. Bxd4 {[%emt 0:00:11]} Qxd4+ {[%emt 0:01:15]} 28. Qf2 {[%emt 0:00:11]} Re8 {[%emt 0:00:50]} 29. h4 {[%emt 0:05:44]} Kg7 {[%emt 0:01:11]} 30. Kh2 {[%emt 0:01:22]} Qxf2+ {[%emt 0:00:40]} 31. Rxf2 {[%emt 0:00:06]} Kf6 {[%emt 0:01:26]} 32. Bd1 {[%emt 0:03:09]} Bc6 {[%emt 0:01:22]} 33. Bc2 {[%emt 0:00:27]} Rd7 {[%emt 0:00:48]} 34. Kg3 {[%emt 0:01:47]} Rd4 {[%emt 0:00:40]} 35. hxg5+ {[%emt 0:05:09]} hxg5 {[%emt 0:00:02]} 36. Re2 {[%emt 0:00:11]} e4 {[%emt 0:01:26]} 37. dxe4 {[%emt 0:01:10]} Bxe4 {[%emt 0:00:05]} 38. Bxe4 {[%emt 0:00:05]} Rexe4 {[%emt 0:00:15]} 39. Rxe4 {[%emt 0:00:06]} Rxe4 {[%emt 0:00:05]} 40. Nf8 {[%emt 0:00:00]} Re3+ {[%emt 0:00:00]} 41. Kf2 {[%emt 0:00:26]} Rh3 {[%emt 0:09:10]} 42. Kg2 {[%emt 0:06:41]} Ra3 {[%emt 0:04:19]} 43. Nh7+ {[%emt 0:06:06]} Ke5 {[%emt 0:00:04]} 44. Nxg5 {[%emt 0:00:03]} Rxa2+ {[%emt 0:00:05]} 45. Kf3 {[%emt 0:01:50]} Ra3+ {[%emt 0:00:10]} 46. Kg2 {[%emt 0:00:24]} a5 {[%emt 0:00:12]} 47. Nf7+ {[%emt 0:01:18]} Kf6 {[%emt 0:01:06]} 48. Nd6 {[%emt 0:01:08]} Rd3 {[%emt 0:01:04]} 49. Ne8+ {[%emt 0:01:16]} Kg5 {[%emt 0:00:25]} 50. f6 {[%emt 0:01:00]} Rd7 {[%emt 0:01:17]} 0-1

[Event "Icelandic Team-ch Kvika Leagu 2023-24"]
[Site "Reykjavik"]
[Date "2024.03.01"]
[Round "7"]
[White "Bjornsson, Tomas"]
[Black "Mai, Alexander Oliver"]
[Result "1/2-1/2"]
[ECO "E08"]
[WhiteElo "2165"]
[BlackElo "2160"]
[Annotator "RC"]
[PlyCount "35"]
[EventDate "2024.02.29"]
[EventType "team-tourn"]
[EventCountry "ISL"]
[SourceTitle "playchess.com"]
[Source "ChessBase"]
[SourceQuality "1"]
[TimeControl "40/5400+30:900+30"]

1. d4 {[%emt 0:00:04]} Nf6 {[%emt 0:03:11]} 2. c4 {[%emt 0:00:11]} e6 {[%emt 0:00:14]} 3. Nf3 {[%emt 0:00:16]} d5 {[%emt 0:00:07]} 4. g3 {[%emt 0:00:44]} Bb4+ {[%emt 0:00:49]} 5. Bd2 {[%emt 0:00:37]} Be7 {[%emt 0:00:15]} 6. Bg2 {[%emt 0:00:41]} O-O {[%emt 0:00:19]} 7. O-O {[%emt 0:03:47]} Nbd7 {[%emt 0:03:15]} 8. Qc2 {[%emt 0:02:35]} c6 {[%emt 0:01:33]} 9. Bf4 {[%emt 0:04:50]} b6 {[%emt 0:01:06]} 10. cxd5 {[%emt 0:14:33]} cxd5 {[%emt 0:00:34]} 11. Nc3 {[%emt 0:01:33]} Bb7 {[%emt 0:18:19]} 12. Nb5 {[%emt 0:05:47]} Ne8 {[%emt 0:00:36]} 13. Rac1 {[%emt 0:12:46]} Rc8 {[%emt 0:02:13]} 14. Qb3 {[%emt 0:00:51]} a6 {[%emt 0:04:55]} 15. Rxc8 {[%emt 0:00:36]} Bxc8 {[%emt 0:00:39]} 16. Nc3 {[%emt 0:00:34]} Bb7 {[%emt 0:03:11]} 17. Ne5 {[%emt 0:05:59]} Nxe5 {[%emt 0:02:18]} 18. Bxe5 {[%emt 0:07:24]} 1/2-1/2

[Event "Icelandic Team-ch Kvika Leagu 2023-24"]
[Site "Reykjavik"]
[Date "2024.03.02"]
[Round "7"]
[White "Ingvason, Johann"]
[Black "Kristinsson, Baldur"]
[Result "1/2-1/2"]
[ECO "E62"]
[WhiteElo "2092"]
[BlackElo "2169"]
[Annotator "RC"]
[PlyCount "112"]
[EventDate "2024.02.29"]
[EventType "team-tourn"]
[EventCountry "ISL"]
[SourceTitle "playchess.com"]
[Source "ChessBase"]
[SourceQuality "1"]
[TimeControl "40/5400+30:900+30"]

1. d4 {[%emt 0:00:02]} Nf6 {[%emt 0:00:05]} 2. c4 {[%emt 0:00:16]} g6 {[%emt 0:00:37]} 3. g3 {[%emt 0:00:22]} Bg7 {[%emt 0:00:08]} 4. Nc3 {[%emt 0:00:33]} O-O {[%emt 0:00:37]} 5. Bg2 {[%emt 0:00:08]} d6 {[%emt 0:00:07]} 6. Nf3 {[%emt 0:00:10]} Nc6 {[%emt 0:01:16]} 7. d5 {[%emt 0:00:41]} Na5 {[%emt 0:01:13]} 8. b3 {[%emt 0:00:12]} c5 {[%emt 0:03:26]} 9. dxc6 {[%emt 0:00:18]} Ne4 {[%emt 0:06:03]} 10. Nxe4 {[%emt 0:00:09]} Bxa1 {[%emt 0:00:06]} 11. Bh6 {[%emt 0:00:08]} Bg7 {[%emt 0:00:05]} 12. Bxg7 {[%emt 0:00:06]} Kxg7 {[%emt 0:00:05]} 13. h4 {[%emt 0:01:13]} Nxc6 {[%emt 0:11:02]} 14. h5 {[%emt 0:00:10]} Qa5+ {[%emt 0:19:22]} 15. Kf1 {[%emt 0:02:04]} Bf5 {[%emt 0:01:27]} 16. Qa1+ {[%emt 0:07:25]} f6 {[%emt 0:03:53]} 17. Nc3 {[%emt 0:05:00]} Bg4 {[%emt 0:26:07]} 18. Nd5 {[%emt 0:22:28]} e6 {[%emt 0:06:52]} 19. h6+ {[%emt 0:11:59]} Kf7 {[%emt 0:10:47]} 20. Ng5+ {[%emt 0:13:25]} fxg5 {[%emt 0:06:35]} 21. Qg7+ {[%emt 0:01:08]} Ke8 {[%emt 0:00:08]} 22. Nc7+ {[%emt 0:07:11]} Kd8 {[%emt 0:00:09]} 23. Nxa8 {[%emt 0:18:18]} Qf5 {[%emt 0:01:13]} 24. Qc7+ {[%emt 0:00:51]} Ke8 {[%emt 0:00:04]} 25. Bxc6+ {[%emt 0:01:47]} bxc6 {[%emt 0:00:06]} 26. Qxc6+ {[%emt 0:00:09]} Ke7 {[%emt 0:00:04]} 27. Qc7+ {[%emt 0:01:15]} Ke8 {[%emt 0:00:08]} 28. Qb8+ {[%emt 0:00:31]} Kf7 {[%emt 0:00:42]} 29. Qxa7+ {[%emt 0:00:13]} Ke8 {[%emt 0:00:14]} 30. Qb8+ {[%emt 0:02:06]} Ke7 {[%emt 0:00:18]} 31. Qb7+ {[%emt 0:00:31]} Kd8 {[%emt 0:00:16]} 32. Qb6+ {[%emt 0:01:50]} Kd7 {[%emt 0:00:09]} 33. Qb7+ {[%emt 0:01:26]} Kd8 {[%emt 0:00:13]} 34. f3 {[%emt 0:01:51]} d5 {[%emt 0:01:06]} 35. Qc7+ {[%emt 0:00:25]} Ke8 {[%emt 0:00:10]} 36. Qc6+ {[%emt 0:00:13]} Ke7 {[%emt 0:00:11]} 37. Qb7+ {[%emt 0:00:14]} Kd8 {[%emt 0:02:41]} 38. Qb6+ {[%emt 0:00:34]} Kd7 {[%emt 0:00:29]} 39. Qc7+ {[%emt 0:00:12]} Ke8 {[%emt 0:00:07]} 40. Qc6+ {[%emt 0:00:00]} Ke7 {[%emt 0:00:00]} 41. Qc5+ {[%emt 0:02:23]} Kf7 {[%emt 0:11:41]} 42. Qa7+ {[%emt 0:05:47]} Ke8 {[%emt 0:00:12]} 43. Nc7+ {[%emt 0:03:08]} Kd8 {[%emt 0:00:13]} 44. Nb5 {[%emt 0:01:22]} Qe5 {[%emt 0:02:47]} 45. Qa8+ {[%emt 0:01:31]} Ke7 {[%emt 0:00:22]} 46. Qb7+ {[%emt 0:00:18]} Kd8 {[%emt 0:00:20]} 47. Qg7 {[%emt 0:02:29]} Rf6 {[%emt 0:02:30]} 48. Qg8+ {[%emt 0:03:26]} Ke7 {[%emt 0:00:22]} 49. Qg7+ {[%emt 0:00:06]} Kd8 {[%emt 0:00:14]} 50. Nd6 {[%emt 0:00:54]} Qb2 {[%emt 0:02:24]} 51. Nb7+ {[%emt 0:01:03]} Kc8 {[%emt 0:00:10]} 52. Nd6+ {[%emt 0:00:03]} Kd8 {[%emt 0:00:06]} 53. Nf7+ {[%emt 0:00:39]} Ke8 {[%emt 0:00:58]} 54. Nd6+ {[%emt 0:01:09]} Kd8 {[%emt 0:00:08]} 55. Nb7+ {[%emt 0:00:24]} Kc8 {[%emt 0:00:07]} 56. Nd6+ {[%emt 0:00:31]} Kd8 {[%emt 0:01:48]} 1/2-1/2

[Event "Icelandic Team-ch Kvika Leagu 2023-24"]
[Site "Reykjavik"]
[Date "2024.03.01"]
[Round "7"]
[White "Ptacnikova, Lenka"]
[Black "Sverrisson, Nokkvi"]
[Result "1-0"]
[ECO "D00"]
[WhiteElo "2067"]
[BlackElo "2052"]
[Annotator "RC"]
[PlyCount "43"]
[EventDate "2024.02.29"]
[EventType "team-tourn"]
[EventCountry "ISL"]
[SourceTitle "playchess.com"]
[Source "ChessBase"]
[SourceQuality "1"]
[TimeControl "40/5400+30:900+30"]

1. d4 {[%emt 0:00:01]} Nf6 {[%emt 0:00:06]} 2. Nc3 {[%emt 0:00:08]} d5 {[%emt 0:00:14]} 3. Bf4 {[%emt 0:00:08]} c5 {[%emt 0:01:09]} 4. e3 {[%emt 0:00:04]} Nc6 {[%emt 0:03:39]} 5. Nb5 {[%emt 0:01:22]} Qa5+ {[%emt 0:18:19]} 6. c3 {[%emt 0:02:30]} Kd7 {[%emt 0:11:46]} 7. Bc7 {[%emt 0:14:47]} b6 {[%emt 0:04:20]} 8. dxc5 {[%emt 0:07:46]} Ba6 {[%emt 0:00:08]} 9. a4 {[%emt 0:00:48]} e6 {[%emt 0:05:03]} 10. Nf3 {[%emt 0:23:14]} Nb4 {[%emt 0:19:51]} 11. Be5 {[%emt 0:18:38]} Ne4 {[%emt 0:17:23]} 12. cxb4 {[%emt 0:07:30]} Qxb4+ {[%emt 0:00:10]} 13. Bc3 {[%emt 0:01:06]} Qxc5 {[%emt 0:04:35]} 14. Be2 {[%emt 0:02:50]} Bd6 {[%emt 0:00:59]} 15. O-O {[%emt 0:02:21]} Ke7 {[%emt 0:01:09]} 16. Bd4 {[%emt 0:01:13]} Qb4 {[%emt 0:02:12]} 17. Nxd6 {[%emt 0:00:25]} Bxe2 {[%emt 0:00:32]} 18. Nf5+ {[%emt 0:00:33]} exf5 {[%emt 0:00:14]} 19. Qxe2 {[%emt 0:00:05]} Rac8 {[%emt 0:00:43]} 20. Nh4 {[%emt 0:01:59]} Nd6 {[%emt 0:00:48]} 21. Qh5 {[%emt 0:02:23]} g6 {[%emt 0:00:39]} 22. Qg5+ {[%emt 0:00:10]} 1-0